bitfinex-derivatives/quotes_ETHF0:USTF0_20250428
["timestamp","ask_amount","ask_price","bid_price","bid_amount"]
[1745882120135,1.11086,1800.0,1799.9,2.79319]
[1745882121535,2.80316,1800.0,1799.9,2.79319]
[1745882122331,1.11104,1799.7,1799.5,45.11889]
[1745882122536,1.11104,1799.7,1799.6,2.85348]
[1745882122735,4.40149,1799.8,1799.7,1.11101]
[1745882123427,3.2905,1799.8,1799.7,1.94891]
[1745882123634,2.4774,1799.8,1799.7,1.94891]
[1745882123834,3.58835,1799.8,1799.7,1.94891]
[1745882124138,3.58835,1799.8,1799.7,5.75091]
[1745882124936,2.4774,1799.8,1799.7,5.75091]
[1745882125142,2.4774,1799.8,1799.7,8.95871]
[1745882125339,3.58835,1799.8,1799.7,8.95871]
[1745882125536,2.4774,1799.8,1799.7,8.95871]
[1745882125838,1.11091,1799.9,1799.8,1.11091]
[1745882126142,3.59981,1799.9,1799.8,2.70571]
[1745882127235,3.59981,1799.9,1799.8,6.50771]
[1745882127435,2.4889,1799.9,1799.8,6.50771]
[1745882127634,4.8428,1800.1,1800.0,1.11083]
[1745882127840,1.1108,1800.1,1800.0,1.11083]
[1745882128035,2.7212,1800.1,1800.0,1.11083]
[1745882128244,2.7212,1800.1,1800.0,5.71933]
[1745882129042,2.7212,1800.1,1800.0,3.802]
[1745882129246,1.11083,1800.0,1799.9,2.81695]
[1745882129544,3.59983,1800.0,1799.9,2.81695]
[1745882130145,3.59983,1800.0,1799.9,6.61895]
[1745882130333,2.489,1800.0,1799.9,6.61895]
[1745882132147,2.489,1800.0,1799.9,2.81695]
[1745882132543,1.11081,1800.1,1800.0,1.11083]
[1745882132743,1.11081,1800.1,1800.0,2.83533]
[1745882132944,2.73781,1800.1,1800.0,2.83533]
[1745882134344,0.8717,1800.2,1800.1,1.11077]
[1745882134544,0.8717,1800.2,1800.1,3.65357]
[1745882134849,1.98244,1800.2,1800.1,3.65357]
[1745882135038,3.61254,1800.2,1800.1,3.65357]
[1745882136140,1.11077,1800.1,1800.0,1.11078]
[1745882136347,2.74087,1800.1,1800.0,1.11078]
[1745882136547,2.74087,1800.1,1800.0,2.82628]
[1745882137146,2.74087,1800.1,1800.0,6.62828]
[1745882137446,0.8717,1800.2,1800.1,1.11077]
[1745882137634,0.8717,1800.2,1800.1,2.78757]
[1745882138247,2.5401,1800.2,1800.1,2.78757]
[1745882138747,3.65084,1800.2,1800.1,2.78757]
[1745882141044,1.11083,1800.0,1799.9,49.67797]
[1745882141243,1.11083,1800.0,1799.9,51.37487]
[1745882141441,1.11083,1800.0,1799.9,48.16707]
[1745882145648,2.74352,1800.1,1800.0,1.11083]
[1745882145850,2.74352,1800.1,1800.0,2.70763]
[1745882151354,1.98246,1800.2,1800.1,1.11077]
[1745882151566,3.57306,1800.2,1800.1,2.70917]
[1745882151755,22.44275815,1801.1,1800.1,6.5984]
[1745882151951,0.8321,1801.0,1800.8,1.11029]
[1745882152159,0.8321,1801.0,1800.9,5.4568]
[1745882152356,2.4895,1801.0,1800.9,6.56707]
[1745882152554,3.59971,1801.0,1800.9,1.7288]
[1745882152857,16.55875815,1801.1,1800.9,5.4568]
[1745882153050,16.55875815,1801.1,1801.0,1.11021]
[1745882153256,19.32633815,1801.1,1800.9,8.64025]
[1745882153459,19.32633815,1801.1,1800.9,10.36905]
[1745882153648,1.6574,1801.0,1800.9,10.36905]
[1745882154158,1.6574,1801.0,1800.9,6.56705]
[1745882154452,1.6574,1801.0,1800.9,2.83905]
[1745882154759,1.6574,1801.0,1800.9,5.4568]
[1745882155359,2.76761,1801.0,1800.9,5.4568]
[1745882156570,0.8321,1801.3,1801.2,1.11009]
[1745882156858,0.8321,1801.3,1800.9,11.44025]
[1745882156859,0.8321,1801.3,1801.1,1.1101]
[1745882157161,1.7467,1801.2,1801.1,1.1101]
[1745882157463,1.7467,1801.2,1801.1,4.8371]
[1745882159162,3.2078,1801.4,1801.3,1.11003]
[1745882159363,4.31777,1801.4,1801.3,1.11003]
[1745882159664,6.07507,1801.4,1801.3,1.11003]
[1745882159864,6.07507,1801.4,1801.3,1.7479]
[1745882160069,1.11003,1801.3,1801.2,4.83704]
[1745882160262,1.7573,1801.3,1801.2,4.83704]
[1745882160462,1.7573,1801.3,1801.2,6.58494]
[1745882160866,3.2078,1801.4,1801.3,1.11003]
[1745882161067,6.07507,1801.4,1801.3,2.85793]
[1745882161361,4.9651,1801.4,1801.3,2.85793]
[1745882161968,6.07507,1801.4,1801.3,2.85793]
[1745882163270,4.9651,1801.4,1801.0,1.7292]
[1745882163460,1.11009,1801.2,1801.1,3.726]
[1745882163661,2.85076,1801.3,1801.1,4.83615]
[1745882163861,0.8779,1801.2,1801.1,1.11015]
[1745882164063,4.3178,1801.4,1801.2,1.11004]
[1745882164273,3.6487,1801.4,1801.2,1.11004]
[1745882164468,1.6317,1801.3,1801.2,1.11004]
[1745882164767,2.74173,1801.3,1801.2,1.11004]
[1745882165463,0.798,1801.4,1801.3,1.11003]
[1745882166169,2.4297,1801.4,1801.3,1.11003]
[1745882166363,3.53967,1801.4,1801.3,1.11003]
[1745882166668,3.2078,1801.8,1801.3,6.9338]
[1745882166868,0.798,1801.7,1801.6,1.10984]
[1745882167068,9.0918,1802.4,1801.6,3.726]
[1745882167265,2.74112,1802.3,1801.8,2.77415]
[1745882167562,1.6317,1802.3,1802.2,1.10947]
[1745882168069,0.8115,1802.4,1802.3,1.10941]
[1745882168271,1.92085,1802.4,1802.2,4.83542]
[1745882168570,1.92085,1802.4,1802.3,1.6902]
[1745882168770,19.76655815,1802.6,1802.4,1.10935]
[1745882168969,21.52105815,1802.6,1802.3,1.6902]
[1745882169172,21.52105815,1802.6,1802.3,2.79957]
[1745882169373,1.10931,1802.5,1802.3,2.79956]
[1745882169565,2.86381,1802.5,1802.4,42.4902]
[1745882170173,6.66581,1802.5,1802.4,42.4902]
[1745882170370,6.66581,1802.5,1802.4,40.8]
[1745882170769,1.10938,1802.4,1802.2,6.43803]
[1745882170965,3.65998,1802.4,1802.2,5.3286]
[1745882171161,1.10941,1802.3,1802.2,1.6026]
[1745882171368,9.5604,1802.4,1801.9,4.0182]
[1745882171567,1.1096,1802.0,1801.9,6.138]
[1745882171767,1.1096,1802.0,1801.9,46.938]
[1745882172070,1.10957,1802.1,1801.9,48.04766]
[1745882172271,5.4886,1802.0,1801.9,46.938]
[1745882172473,5.4886,1802.0,1801.9,48.04766]
[1745882172679,6.5982,1802.0,1801.9,43.213]
[1745882172871,6.5982,1802.0,1801.9,44.525]
[1745882173279,6.5982,1802.0,1801.9,3.725]
[1745882174087,2.7962,1802.0,1801.9,3.725]
[1745882174281,2.7962,1802.0,1801.9,5.3262]
[1745882174981,1.6866,1802.0,1801.7,45.11754]
[1745882175169,1.91636,1801.9,1801.8,3.725]
[1745882175372,1.10972,1801.8,1801.7,49.334]
[1745882175578,2.80252,1801.8,1801.7,49.334]
[1745882175877,1.10984,1801.6,1801.5,0.8463]
[1745882176067,1.11006,1801.3,1801.1,3.2078]
[1745882176273,1.11006,1801.3,1801.2,3.725]
[1745882176473,1.6928,1801.5,1801.2,47.39036]
[1745882176474,1.11,1801.4,1801.2,47.39036]
[1745882176681,1.596,1801.3,1801.2,47.39036]
[1745882179174,1.596,1801.3,1801.2,43.66536]
[1745882179376,1.11009,1801.2,1801.1,3.2078]
[1745882179575,1.11009,1801.2,1801.1,6.9298]
[1745882179774,1.11009,1801.2,1801.1,44.0078]
[1745882179971,2.78029,1801.2,1801.1,45.11795]
[1745882180169,1.6702,1801.2,1801.1,45.11795]
[1745882181782,1.11007,1801.3,1801.2,1.11009]
[1745882182080,1.11009,1801.2,1801.1,45.11792]
[1745882182277,2.78029,1801.2,1801.1,45.11792]
[1745882182482,1.6702,1801.2,1801.1,45.11792]
[1745882182682,2.78029,1801.2,1801.1,45.11792]
[1745882182986,1.6702,1801.2,1801.1,45.11792]
[1745882184079,2.78029,1801.2,1801.1,45.11792]
[1745882184281,2.78029,1801.2,1801.1,44.0078]
[1745882184578,1.6702,1801.2,1800.9,3.2078]
[1745882184782,1.11021,1801.0,1800.9,3.2078]
[1745882188381,1.11027,1800.9,1800.8,46.2442]
[1745882188575,1.11033,1800.8,1800.7,3.722]
[1745882188782,1.11052,1800.5,1800.4,3.2078]
[1745882189093,1.11058,1800.4,1800.3,6.4205]
[1745882189293,2.73638,1800.4,1800.3,9.6283]
[1745882189581,1.11077,1800.1,1800.0,0.8597]
[1745882189888,1.11077,1800.1,1800.0,1.5879]
[1745882190076,1.11077,1800.1,1800.0,42.3879]
[1745882190682,1.11077,1800.1,1800.0,43.49873]
[1745882190881,1.11077,1800.1,1800.0,42.3879]
[1745882191077,1.11083,1800.0,1799.8,4.83292]
[1745882191287,1.6258,1799.9,1799.8,9.62862]
[1745882191590,1.6258,1799.9,1799.8,50.42862]
[1745882193194,1.11081,1800.1,1799.9,1.11085]
[1745882193490,1.11081,1800.1,1799.9,2.86405]
[1745882193682,1.6379,1800.0,1799.9,2.86405]
[1745882195478,1.11076,1800.2,1799.9,2.86405]
[1745882195683,1.11076,1800.2,1800.0,1.1108]
[1745882195684,2.85056,1800.2,1800.0,1.1108]
[1745882195891,2.85056,1800.2,1800.0,2.7119]
[1745882196188,1.11077,1800.1,1800.0,2.7119]
[1745882196390,2.85057,1800.1,1800.0,1.6011]
[1745882197386,2.85057,1800.1,1800.0,2.71193]
[1745882197688,1.11075,1800.2,1800.1,1.11077]
[1745882198190,4.33779,1800.3,1800.2,1.1107]
[1745882198892,1.1107,1800.2,1800.1,1.11072]
[1745882199391,2.7193,1800.2,1800.1,1.11072]
[1745882199989,1.6086,1800.2,1800.1,1.11072]
[1745882200687,2.7193,1800.2,1800.1,1.11072]
[1745882203598,1.6086,1800.2,1800.1,1.11072]
[1745882203893,0.8083,1800.3,1800.2,1.1107]
[1745882204394,4.9508,1800.4,1800.3,1.11064]
[1745882204693,5.97951,1800.6,1800.5,1.11052]
[1745882204992,0.8447,1800.6,1800.5,1.11052]
[1745882205289,1.11033,1800.8,1800.7,1.11036]
[1745882205487,1.11033,1800.8,1800.6,1.92081]
[1745882205686,1.743,1800.7,1800.6,1.92081]
[1745882206195,2.8534,1800.7,1800.6,1.92081]
[1745882206594,1.743,1800.7,1800.6,1.92081]
[1745882206997,2.8534,1800.7,1800.6,1.92081]
[1745882207197,1.743,1800.7,1800.6,1.92081]
[1745882209795,2.8534,1800.7,1800.6,0.8104]
[1745882209998,1.11046,1800.6,1800.5,3.802]
[1745882210205,1.11052,1800.5,1800.4,4.31834]
[1745882210500,1.94872,1800.5,1800.4,3.2078]
[1745882210702,3.68452,1800.5,1800.4,4.31838]
[1745882212800,3.68452,1800.5,1800.3,1.6232]
[1745882212801,1.11064,1800.4,1800.2,9.8978]
[1745882212996,1.11064,1800.3,1800.2,10.16649]
[1745882213196,2.82573,1800.4,1800.2,11.90749]
[1745882213395,2.82573,1800.4,1800.3,1.11064]
[1745882213906,1.7151,1800.4,1800.3,1.11064]
[1745882214098,1.7151,1800.4,1800.3,2.85164]
[1745882214299,0.8382,1800.5,1800.4,1.11058]
[1745882214605,0.8382,1800.5,1800.4,2.85158]
[1745882215305,1.94872,1800.5,1800.4,2.85158]
[1745882216000,1.94872,1800.5,1800.4,1.741]
[1745882216209,1.11064,1800.3,1800.2,5.94576]
[1745882216600,2.78611,1800.4,1800.3,1.11064]
[1745882217296,2.78613,1800.4,1800.3,1.11064]
[1745882217711,1.11064,1800.3,1800.2,5.94576]
[1745882217901,2.78614,1800.3,1800.2,5.94576]
[1745882218102,1.6755,1800.3,1800.2,9.74776]
[1745882220715,2.78614,1800.3,1800.2,3.802]
[1745882221219,1.11077,1800.1,1800.0,1.94609]
[1745882221611,1.11083,1800.0,1799.9,6.00167]
[1745882221812,2.5823,1800.0,1799.9,6.00167]
[1745882222112,2.5823,1800.0,1799.9,9.80367]
[1745882222318,0.858,1800.0,1799.9,9.80367]
[1745882222520,1.92383,1800.2,1800.0,1.11078]
[1745882222716,1.11077,1800.1,1800.0,1.608]
[1745882223312,2.81907,1800.1,1800.0,1.608]
[1745882224019,2.81907,1800.1,1800.0,2.71883]
[1745882224320,2.81907,1800.1,1800.0,6.52083]
[1745882224515,0.8131,1800.2,1800.0,6.52083]
[1745882224516,3.2078,1800.4,1800.0,5.41]
[1745882224714,1.11073,1800.2,1800.1,1.608]
[1745882225120,2.73973,1800.2,1800.1,2.71877]
[1745882225305,1.629,1800.2,1800.1,2.71877]
[1745882225512,0.858,1800.3,1800.2,1.1107]
[1745882225712,0.858,1800.3,1800.2,2.7282]
[1745882226116,0.858,1800.3,1800.2,6.5302]
[1745882227319,1.96864,1800.3,1800.2,5.4195]
[1745882227617,0.858,1800.3,1800.2,6.5302]
[1745882228320,1.96864,1800.3,1800.2,6.5302]
[1745882228822,1.96864,1800.3,1800.2,3.802]
[1745882229122,2.4592,1800.3,1800.2,1.1107]
[1745882229422,3.56984,1800.3,1800.2,2.7213]
[1745882231622,1.1107,1800.2,1800.1,1.11072]
[1745882231924,2.72374,1800.2,1800.0,3.70849]
[1745882232127,1.11077,1800.1,1800.0,2.5977]
[1745882232425,2.72377,1800.1,1800.0,2.5977]
[1745882232629,1.11095,1799.8,1799.7,3.2078]
[1745882232821,1.11095,1799.8,1799.7,1.11101]
[1745882233122,1.11095,1799.8,1799.7,41.91101]
[1745882233323,2.422,1799.9,1799.8,1.11095]
[1745882233621,1.91989,1799.9,1799.8,1.727]
[1745882233822,3.53289,1799.9,1799.8,1.727]
[1745882235025,1.11095,1799.8,1799.7,3.2078]
[1745882235223,1.11101,1799.7,1799.6,1.97733]
[1745882235528,1.11101,1799.7,1799.5,4.31893]
[1745882235719,1.11114,1799.5,1799.4,41.6445]
[1745882236224,1.11114,1799.5,1799.4,43.373]
[1745882236424,1.11114,1799.5,1799.4,3.6842]
[1745882236826,2.73042,1799.6,1799.5,1.11114]
[1745882237034,2.73042,1799.6,1799.5,2.83964]
[1745882237423,2.73042,1799.6,1799.5,1.7285]
[1745882238730,1.11114,1799.5,1799.4,1.9557]
[1745882238930,0.8138,1799.7,1799.5,1.11114]
[1745882239123,3.51357,1799.7,1799.5,1.11114]
[1745882239324,1.11108,1799.6,1799.5,2.77524]
[1745882239523,2.69978,1799.6,1799.5,2.77524]
[1745882240531,2.69978,1799.6,1799.5,1.6641]
[1745882240733,2.69978,1799.6,1799.5,2.77524]
[1745882240931,2.69978,1799.6,1799.4,0.8445]
[1745882240932,1.11114,1799.5,1799.4,1.95566]
[1745882241232,2.77364,1799.5,1799.4,2.4386]
[1745882241433,3.59244,1799.5,1799.4,2.4386]
[1745882242125,3.59244,1799.5,1799.4,3.802]
[1745882242932,1.11132,1799.2,1799.1,3.2078]
[1745882243127,1.11132,1799.2,1798.4,14.75664605]
[1745882243128,1.11169,1798.6,1798.5,5.87799302]
[1745882243428,4.31949,1798.6,1798.5,5.87799302]
[1745882244329,6.03239,1798.6,1798.5,5.87799302]
[1745882245331,6.03239,1798.6,1798.5,4.66624302]
[1745882246234,6.88019,1798.6,1798.5,4.66624302]
[1745882247031,11.88019,1798.6,1798.5,0.51489302]
[1745882247331,11.88019,1798.6,1798.5,3.02e-06]
[1745882247332,15.68219,1798.6,1798.5,3.02e-06]
[1745882247537,1.11206,1798.0,1797.9,2.4877]
[1745882247736,1.11213,1797.9,1797.8,4.0576]
[1745882248131,1.11213,1797.9,1797.8,7.8596]
[1745882249136,1.11213,1797.9,1797.8,9.5482]
[1745882249837,1.11213,1797.9,1797.8,6.3404]
[1745882250035,4.31993,1797.9,1797.8,2.37066]
[1745882250234,4.31993,1797.9,1796.7,14.75664605]
[1745882250235,11.9298,1797.9,1796.7,14.75664605]
[1745882250437,1.11268,1797.0,1796.8,1.5993]
[1745882250629,1.11268,1797.0,1796.8,40.8]
[1745882251131,1.11274,1796.9,1796.8,40.8]
[1745882251636,1.11274,1796.9,1796.8,45.8]
[1745882251833,1.11285,1796.8,1796.6,4.5248]
[1745882252038,1.11285,1796.8,1796.6,5.63771]
[1745882252342,1.11285,1796.8,1796.7,40.8]
[1745882252634,1.11285,1796.8,1796.7,44.524]
[1745882252941,3.2078,1796.9,1796.5,3.724]
[1745882253134,3.2078,1796.9,1796.6,1.7408]
[1745882253327,1.11281,1796.8,1796.6,1.7408]
[1745882253533,3.2078,1796.9,1796.6,42.5408]
[1745882253534,1.11287,1796.7,1796.6,42.5408]
[1745882253928,1.11287,1796.7,1796.6,1.7408]
[1745882254133,1.11286,1796.8,1796.6,1.7408]
[1745882254334,1.11287,1796.7,1796.6,1.7408]
[1745882256237,4.32067,1796.7,1796.6,1.7408]
[1745882257433,1.11293,1796.6,1796.5,3.802]
[1745882258027,2.83023,1796.6,1796.5,3.802]
[1745882258939,1.11293,1796.6,1796.5,3.802]
[1745882260234,1.11293,1796.6,1796.5,2.56049]
[1745882260439,7.22683,1796.6,1796.5,2.56049]
[1745882260937,12.22683,1796.6,1796.5,2.56049]
[1745882261325,1.11327,1796.1,1795.9,1.11332]
[1745882261534,1.11327,1796.1,1796.0,1.1133]
[1745882261840,4.32104,1796.1,1795.8,3.725]
[1745882262039,1.11332,1796.0,1795.9,1.11333]
[1745882262238,1.11332,1796.0,1795.8,7.527]
[1745882262438,3.2078,1796.1,1796.0,1.1133]
[1745882263039,3.2078,1796.1,1795.9,1.11332]
[1745882263040,4.32104,1796.1,1795.9,1.11332]
[1745882263338,3.2078,1796.1,1795.8,7.527]
[1745882263540,4.32105,1796.1,1796.0,3.802]
[1745882263730,1.717,1796.3,1796.0,3.802]
[1745882263936,1.1131,1796.4,1796.2,1.11318]
[1745882264235,1.11312,1796.3,1796.2,3.802]
[1745882265531,1.11312,1796.3,1796.2,4.91518]
[1745882267236,1.717,1796.4,1796.2,3.802]
[1745882267432,4.32084,1796.5,1796.2,3.802]
[1745882267631,6.05724,1796.5,1796.3,1.11308]
[1745882268140,6.05724,1796.5,1796.3,4.91508]
[1745882268635,1.11305,1796.4,1796.3,4.91508]
[1745882268841,6.05725,1796.5,1796.3,4.91508]
[1745882269140,4.9442,1796.5,1796.4,1.11305]
[1745882269338,4.32079,1796.5,1796.4,1.11305]
[1745882269737,3.2078,1796.5,1796.4,1.11305]
[1745882270043,1.6713,1796.7,1796.3,3.802]
[1745882270044,1.11287,1796.7,1796.6,1.11293]
[1745882270242,1.11287,1796.7,1796.4,5.3904]
[1745882270438,64.882,1802.7,1796.7,2.78218]
[1745882270439,3.2078,1797.9,1796.7,2.78218]
[1745882270645,1.6713,1797.7,1797.5,1.11233]
[1745882270944,3.2078,1797.9,1797.6,1.6291]
[1745882271145,1.7325,1797.8,1797.6,1.6291]
[1745882272547,1.7325,1797.8,1797.6,2.7414]
[1745882273536,1.7325,1797.8,1797.7,1.11225]
[1745882273838,1.7325,1797.8,1797.7,2.11025]
[1745882274145,1.7325,1797.8,1797.7,5.91225]
[1745882275353,1.7325,1797.8,1797.7,0.998]
[1745882275539,1.7325,1797.8,1797.7,2.11025]
[1745882276549,3.2078,1797.9,1797.8,1.11219]
[1745882277048,3.2078,1797.9,1797.8,2.80319]
[1745882277243,3.2078,1797.9,1797.8,6.60519]
[1745882279252,3.2078,1797.9,1797.8,2.80319]
[1745882280249,3.2078,1797.9,1797.8,6.60519]
[1745882280746,1.6209,1798.1,1798.0,1.11206]
[1745882283448,6.6209,1798.1,1797.8,1.11213]
[1745882283641,1.11219,1797.8,1797.7,0.998]
[1745882284245,1.11219,1797.8,1797.7,2.11025]
[1745882284548,1.11219,1797.8,1797.7,0.998]
[1745882284946,1.11219,1797.8,1797.7,2.11025]
[1745882285144,1.11219,1797.8,1797.7,0.998]
[1745882287250,1.11219,1797.8,1797.7,2.11025]
[1745882287751,2.72857,1797.9,1797.8,1.11219]
[1745882287952,1.6164,1797.9,1797.8,1.11219]
[1745882288256,1.11201,1798.1,1797.8,7.0098]
[1745882288551,2.73901,1798.1,1797.9,1.6788]
[1745882288741,2.73901,1798.1,1798.0,1.11202]
[1745882289248,1.627,1798.1,1798.0,1.11202]
[1745882289844,2.739,1798.1,1797.9,1.11207]
[1745882290151,2.739,1798.1,1797.9,1.11213]
[1745882290550,2.739,1798.1,1798.0,1.11206]
[1745882290756,1.627,1798.1,1798.0,1.11206]
[1745882291048,3.2078,1798.4,1798.2,1.11194]
[1745882291250,4.9536,1798.4,1798.3,1.11188]
[1745882291552,6.06542,1798.4,1798.3,1.11188]
[1745882292153,4.9536,1798.4,1798.2,1.11188]
[1745882292857,4.9536,1798.4,1798.3,1.11188]
[1745882293154,6.06542,1798.4,1798.3,1.11188]
[1745882294157,1.11189,1798.3,1798.2,1.11191]
[1745882294456,1.6323,1798.3,1798.2,1.11191]
[1745882294658,3.2078,1798.4,1798.3,1.11188]
[1745882294954,2.4871,1798.5,1798.4,1.11182]
[1745882295549,1.6323,1798.5,1798.4,1.11182]
[1745882295750,1.11168,1798.7,1798.4,1.6236]
[1745882296155,2.80748,1798.7,1798.4,5.4256]
[1745882296459,2.80748,1798.7,1798.6,1.11169]
[1745882296755,1.6958,1798.7,1798.6,1.11169]
[1745882297154,1.6958,1798.7,1798.5,3.802]
[1745882297456,8.17849,1798.6,1798.5,3.802]
[1745882297652,14.01259,1798.6,1798.5,3.802]
[1745882297857,15.70839,1798.6,1798.5,3.802]
[1745882298248,1.11188,1798.3,1798.2,1.11193]
[1745882298449,2.7797,1798.3,1797.9,2.7665]
[1745882298653,1.6966,1798.2,1798.0,1.11206]
[1745882298853,1.11203,1798.1,1798.0,1.11206]
[1745882299459,2.80863,1798.1,1798.0,1.11206]
[1745882299660,1.6966,1798.1,1798.0,1.11206]
[1745882299958,2.8086,1798.1,1798.0,1.11206]
[1745882300359,1.6966,1798.1,1798.0,1.11206]
[1745882300759,0.7953,1798.2,1798.1,1.112]
[1745882301057,1.9073,1798.2,1798.1,1.112]
[1745882301258,3.6039,1798.2,1798.1,1.112]
[1745882301957,2.4919,1798.2,1797.8,0.00424554]
[1745882302160,1.11213,1797.9,1797.8,1.11641554]
[1745882302457,1.11213,1797.9,1797.8,0.00424554]
[1745882302856,4.31993,1797.9,1797.8,0.00424554]
[1745882304052,8.12193,1797.9,1797.8,0.00424554]
[1745882304553,14.84093,1797.9,1797.8,0.00424554]
[1745882305367,14.937889,1797.9,1797.8,0.00424554]
[1745882305663,14.937889,1797.9,1797.8,5.54e-06]
[1745882305857,1.11219,1797.8,1797.7,5.54e-06]
[1745882306057,3.773349,1797.8,1797.7,5.54e-06]
[1745882306257,3.2078,1797.3,1796.2,2.4446]
[1745882306563,2.78114,1797.4,1796.2,3.55774]
[1745882306564,1.11305,1796.5,1796.2,3.55774]
[1745882306759,4.32083,1796.5,1796.2,3.55778]
[1745882306959,4.32083,1796.5,1796.3,1.11312]
[1745882307159,4.32083,1796.5,1796.4,1.6525]
[1745882307665,4.32079,1796.5,1796.4,1.6525]
[1745882307857,4.32069,1796.7,1796.5,1.11299]
[1745882308060,4.32069,1796.7,1796.6,1.6075]
[1745882308255,1.6201,1796.6,1796.5,3.802]
[1745882308565,0.43508026,1796.6,1796.5,3.802]
[1745882309163,2.05518026,1796.6,1796.5,6.52249]
[1745882309362,2.0545569,1796.6,1796.5,5.4095]
[1745882309562,2.0545569,1796.6,1796.5,6.52249]
[1745882309967,0.4344569,1796.6,1796.5,6.52249]
[1745882310358,0.43382159,1796.6,1796.5,6.52249]
[1745882311366,2.11448442,1796.6,1796.5,5.4095]
[1745882312164,2.11448442,1796.6,1796.5,6.52249]
[1745882312463,2.1141583,1796.6,1796.5,6.52249]
[1745882312666,1.6809,1796.6,1796.5,6.52249]
[1745882313961,3.2078,1796.7,1796.6,1.11293]
[1745882314467,4.8497,1796.7,1796.6,1.11293]
[1745882314955,3.2078,1796.7,1796.6,1.11293]
[1745882316862,4.8671,1796.7,1796.6,1.11293]
[1745882317965,3.2078,1796.7,1796.6,1.11293]
[1745882318168,9.83775,1797.1,1796.6,6.95433]
[1745882318369,9.83775,1797.1,1797.0,1.11268]
[1745882318965,8.7251,1797.1,1797.0,1.11268]
[1745882320067,9.83772,1797.1,1797.0,1.11268]
[1745882320373,7.0658,1797.1,1797.0,1.11268]
[1745882320573,9.88042,1797.1,1797.0,1.11268]
[1745882321174,10.31271169,1797.1,1797.0,1.11268]
[1745882321673,2.81462,1797.1,1797.0,1.11268]
[1745882321874,6.02242,1797.1,1797.0,1.11268]
[1745882322974,6.45494217,1797.1,1797.0,1.11268]
[1745882323176,1.11274,1796.9,1796.8,1.11275]
[1745882323369,1.1128,1796.9,1796.7,1.7484]
[1745882323570,1.6097,1796.8,1796.7,2.86127]
[1745882324168,1.6097,1796.8,1796.7,6.66327]
[1745882325269,1.6097,1796.8,1796.7,2.86127]
[1745882326180,1.6097,1796.8,1796.7,6.66327]
[1745882327179,1.6097,1796.8,1796.7,2.86127]
[1745882328177,1.6097,1796.8,1796.7,6.66327]
[1745882328478,2.04383821,1796.8,1796.7,6.66327]
[1745882329081,1.6097,1796.8,1796.7,2.86127]
[1745882329276,2.04404137,1796.8,1796.7,2.86127]
[1745882329476,1.11287,1796.7,1796.6,2.82389]
[1745882329785,4.32057,1796.9,1796.8,1.11281]
[1745882330073,3.64223591,1796.9,1796.8,1.11281]
[1745882330474,4.75497591,1796.9,1796.8,1.11281]
[1745882331071,1.54717591,1796.9,1796.8,4.91481]
[1745882332078,1.54794544,1796.9,1796.8,4.91481]
[1745882332472,4.75574544,1796.9,1796.8,4.91481]
[1745882333882,4.75663153,1796.9,1796.8,4.91481]
[1745882334076,4.75663153,1796.9,1796.8,1.11281]
[1745882334882,4.75663153,1796.9,1796.8,2.81271]
[1745882335076,3.64389153,1796.9,1796.8,2.81271]
[1745882335882,4.75663153,1796.9,1796.8,2.81271]
[1745882336582,1.54883153,1796.9,1796.8,2.81271]
[1745882337684,1.54972533,1796.9,1796.8,2.81271]
[1745882338184,1.54972533,1796.9,1796.8,1.11281]
[1745882339588,2.76874,1797.0,1796.9,1.11274]
[1745882339779,3.2058114,1797.0,1796.9,1.11274]
[1745882340286,2.0930714,1797.0,1796.9,1.11274]
[1745882340479,0.4370714,1797.0,1796.9,1.11274]
[1745882340882,2.1560714,1797.0,1796.9,1.11274]
[1745882341085,1.719,1797.0,1796.9,1.11274]
[1745882341282,2.15605556,1797.0,1796.9,1.11274]
[1745882341486,1.719,1797.0,1796.9,1.11274]
[1745882341686,1.719,1797.0,1796.9,2.79024]
[1745882342189,1.11274,1796.9,1796.8,1.11279]
[1745882342382,1.11274,1796.9,1796.7,1.11286]
[1745882342383,1.11281,1796.8,1796.7,1.11286]
[1745882342682,1.11287,1796.7,1796.6,1.711]
[1745882342890,1.11293,1796.6,1796.5,4.8853]
[1745882343089,2.83193,1796.6,1796.5,4.8853]
[1745882343692,2.83193,1796.6,1796.5,5.99829]
[1745882343993,1.719,1796.6,1796.5,5.99829]
[1745882344597,3.25669452,1796.6,1796.5,4.32079]
[1745882345095,5.35156452,1796.6,1796.4,1.11305]
[1745882345296,1.53780452,1796.5,1796.4,1.11305]
[1745882345499,3.21740452,1796.5,1796.4,1.11305]
[1745882345691,3.21740452,1796.5,1796.3,2.82767]
[1745882345891,0.42476452,1796.4,1796.3,2.82767]
[1745882346091,2.10436452,1796.4,1796.3,2.82767]
[1745882346293,2.10436452,1796.4,1796.3,6.62967]
[1745882346993,0.42476452,1796.4,1796.3,6.62967]
[1745882351102,1.53781452,1796.4,1796.3,4.6574]
[1745882351304,3.24111452,1796.4,1796.3,3.802]
[1745882351503,6.44891452,1796.4,1796.3,3.802]
[1745882352304,6.44839552,1796.4,1796.3,3.802]
[1745882356000,12.25719019,1796.4,1796.3,3.802]
[1745882356198,1.1133,1796.0,1795.9,1.6245]
[1745882356403,1.53714019,1796.0,1795.9,1.6245]
[1745882357099,1.53714019,1796.0,1795.9,5.4265]